[Event "Titled Tuesday Blitz June 13 Late 2023"]
[White "Torres Dominguez, David"]
[Black "Kielinkei"]
[WhiteFideId "2220857"]
[WhiteElo "1999"]
[BlackElo "2452"]
[Result "0-1"]
[Round "9"]
[TimeControl "180+2"]
[Date "2023.06.13"]
[WhiteClock "0:00:00"]
[BlackClock "0:00:02"]
[Board "95"]

1. e4 {[%clk 0:02:52]}  c5 {[%clk 0:01:39]} 2. Nc3 {[%clk 0:02:28]}  a6 {[%clk 0:01:37]} 3. f4 {[%clk 0:02:23]}  b5 {[%clk 0:01:36]} 4. Nf3 {[%clk 0:02:23]}  Bb7 {[%clk 0:01:36]} 5. d3 {[%clk 0:02:23]}  e6 {[%clk 0:01:29]} 6. Be2 {[%clk 0:02:22]}  d5 {[%clk 0:01:29]} 7. O-O {[%clk 0:02:20]}  dxe4 {[%clk 0:01:29]} 8. Nxe4 {[%clk 0:02:16]}  Nf6 {[%clk 0:01:28]} 9. Nxf6+ {[%clk 0:02:06]}  Qxf6 {[%clk 0:01:29]} 10. Ne5 {[%clk 0:02:05]}  Bd6 {[%clk 0:01:00]} 11. Bf3 {[%clk 0:02:03]}  Qe7 {[%clk 0:01:00]} 12. Bxb7 {[%clk 0:01:48]}  Qxb7 {[%clk 0:01:01]} 13. Qg4 {[%clk 0:01:40]}  O-O {[%clk 0:00:56]} 14. Nf3 {[%clk 0:01:39]}  Nd7 {[%clk 0:00:53]} 15. Bd2 {[%clk 0:01:33]}  Nf6 {[%clk 0:00:52]} 16. Qh4 {[%clk 0:01:31]}  Be7 {[%clk 0:00:49]} 17. Bc3 {[%clk 0:01:25]}  Nd5 {[%clk 0:00:46]} 18. Qg3 {[%clk 0:01:13]}  Nxc3 {[%clk 0:00:45]} 19. bxc3 {[%clk 0:01:13]}  Bf6 {[%clk 0:00:46]} 20. Ne5 {[%clk 0:01:12]}  Qc7 {[%clk 0:00:44]} 21. Rae1 {[%clk 0:01:07]}  Rad8 {[%clk 0:00:44]} 22. Re2 {[%clk 0:00:52]}  g6 {[%clk 0:00:44]} 23. h4 {[%clk 0:00:38]}  Bg7 {[%clk 0:00:35]} 24. h5 {[%clk 0:00:38]}  Rd5 {[%clk 0:00:26]} 25. c4 {[%clk 0:00:32]}  Rd4 {[%clk 0:00:22]} 26. hxg6 {[%clk 0:00:26]}  hxg6 {[%clk 0:00:23]} 27. Ng4 {[%clk 0:00:18]}  bxc4 {[%clk 0:00:20]} 28. dxc4 {[%clk 0:00:19]}  Rxc4 {[%clk 0:00:20]} 29. Qh3 {[%clk 0:00:16]}  Qe7 {[%clk 0:00:08]} 30. Rf3 {[%clk 0:00:12]}  Rd8 {[%clk 0:00:06]} 31. Nh6+ {[%clk 0:00:10]}  Bxh6 {[%clk 0:00:05]} 32. Qxh6 {[%clk 0:00:10]}  Qf6 {[%clk 0:00:06]} 33. Rh3 {[%clk 0:00:10]}  Qg7 {[%clk 0:00:06]} 34. Qg5 {[%clk 0:00:10]}  Rd1+ {[%clk 0:00:06]} 35. Kh2 {[%clk 0:00:10]}  Rcd4 {[%clk 0:00:05]} 36. Rf2 {[%clk 0:00:05]}  Re1 {[%clk 0:00:05]} 37. f5 {[%clk 0:00:05]}  Rdd1 {[%clk 0:00:04]} 38. f6 {[%clk 0:00:03]}  Rh1+ {[%clk 0:00:03]} 39. Kg3 {[%clk 0:00:03]}  Rxh3+ {[%clk 0:00:04]} 40. Kxh3 {[%clk 0:00:03]}  Qh7+ {[%clk 0:00:04]} 41. Kg3 {[%clk 0:00:03]}  Rd5 {[%clk 0:00:03]} 42. Qf4 {[%clk 0:00:02]}  Kh8 {[%clk 0:00:01]} 43. Qb8+ {[%clk 0:00:02]}  Qg8 {[%clk 0:00:02]} 44. Qf4 {[%clk 0:00:01]}  Rh5 {[%clk 0:00:02]} 45. Kf3 {[%clk 0:00:00]}  Rf5 {[%clk 0:00:02]} 0-1


[Site "https://www.chess.com"]

[Event "Titled Tuesday Blitz June 13 Late 2023"]
[White "Ozalp, Burak"]
[Black "Benedetti, Julio"]
[WhiteFideId "6314210"]
[BlackFideId "172545"]
[WhiteElo "2106"]
[BlackElo "2263"]
[Result "0-1"]
[Round "9"]
[TimeControl "180+2"]
[Date "2023.06.13"]
[WhiteClock "0:00:00"]
[BlackClock "0:00:42"]
[Board "98"]

1. Nf3 {[%clk 0:02:59]}  Nf6 {[%clk 0:02:59]} 2. g3 {[%clk 0:02:59]}  g6 {[%clk 0:02:59]} 3. Bg2 {[%clk 0:02:59]}  Bg7 {[%clk 0:03:00]} 4. O-O {[%clk 0:03:00]}  O-O {[%clk 0:03:01]} 5. d4 {[%clk 0:03:00]}  d6 {[%clk 0:03:01]} 6. a4 {[%clk 0:03:00]}  a5 {[%clk 0:02:57]} 7. Nc3 {[%clk 0:02:58]}  c6 {[%clk 0:02:54]} 8. e4 {[%clk 0:02:57]}  Qc7 {[%clk 0:02:55]} 9. Be3 {[%clk 0:02:49]}  Nbd7 {[%clk 0:02:52]} 10. Qd2 {[%clk 0:02:49]}  e5 {[%clk 0:02:50]} 11. Rad1 {[%clk 0:02:47]}  Ng4 {[%clk 0:02:47]} 12. Rfe1 {[%clk 0:02:21]}  Nxe3 {[%clk 0:02:46]} 13. Rxe3 {[%clk 0:02:21]}  exd4 {[%clk 0:02:45]} 14. Nxd4 {[%clk 0:02:19]}  Ne5 {[%clk 0:02:45]} 15. Qe2 {[%clk 0:01:56]}  b6 {[%clk 0:02:28]} 16. h3 {[%clk 0:01:55]}  Ba6 {[%clk 0:02:27]} 17. Qe1 {[%clk 0:01:32]}  Nc4 {[%clk 0:02:25]} 18. b3 {[%clk 0:01:28]}  Nxe3 {[%clk 0:02:24]} 19. Qxe3 {[%clk 0:01:29]}  Rae8 {[%clk 0:02:19]} 20. Qd2 {[%clk 0:01:22]}  Re7 {[%clk 0:02:12]} 21. e5 {[%clk 0:01:14]}  d5 {[%clk 0:01:42]} 22. f4 {[%clk 0:01:14]}  Bb7 {[%clk 0:01:41]} 23. h4 {[%clk 0:01:05]}  f6 {[%clk 0:01:17]} 24. exf6 {[%clk 0:00:39]}  Bxf6 {[%clk 0:01:15]} 25. Kh2 {[%clk 0:00:35]}  Qd6 {[%clk 0:00:59]} 26. Nf3 {[%clk 0:00:27]}  Qc5 {[%clk 0:00:58]} 27. Ne2 {[%clk 0:00:25]}  Qe3 {[%clk 0:00:57]} 28. Qxe3 {[%clk 0:00:16]}  Rxe3 {[%clk 0:00:58]} 29. Ned4 {[%clk 0:00:14]}  Rfe8 {[%clk 0:00:56]} 30. f5 {[%clk 0:00:14]}  c5 {[%clk 0:00:53]} 31. Nb5 {[%clk 0:00:11]}  Rd8 {[%clk 0:00:45]} 32. fxg6 {[%clk 0:00:10]}  hxg6 {[%clk 0:00:46]} 33. Nd2 {[%clk 0:00:07]}  Re2 {[%clk 0:00:43]} 34. c4 {[%clk 0:00:00]}  dxc4 {[%clk 0:00:42]} 0-1


[Site "https://www.chess.com"]

[Event "Titled Tuesday Blitz June 13 Late 2023"]
[White "Bogaudinov, Rushan"]
[Black "Martins, Vinicius Tine"]
[WhiteFideId "4129288"]
[BlackFideId "2112884"]
[WhiteElo "1967"]
[BlackElo "2373"]
[Result "0-1"]
[Round "9"]
[TimeControl "180+2"]
[Date "2023.06.13"]
[WhiteClock "0:00:10"]
[BlackClock "0:01:08"]
[Board "100"]

1. d4 {[%clk 0:02:39]}  d5 {[%clk 0:02:56]} 2. Nf3 {[%clk 0:02:40]}  c6 {[%clk 0:02:54]} 3. g3 {[%clk 0:02:38]}  Bg4 {[%clk 0:02:52]} 4. Bg2 {[%clk 0:02:39]}  e6 {[%clk 0:02:51]} 5. O-O {[%clk 0:02:38]}  Nd7 {[%clk 0:02:52]} 6. c4 {[%clk 0:02:37]}  f5 {[%clk 0:02:51]} 7. Nc3 {[%clk 0:02:32]}  Ngf6 {[%clk 0:02:51]} 8. Ne5 {[%clk 0:02:30]}  Nxe5 {[%clk 0:02:48]} 9. dxe5 {[%clk 0:02:30]}  Nd7 {[%clk 0:02:49]} 10. f4 {[%clk 0:02:17]}  Bc5+ {[%clk 0:02:45]} 11. Kh1 {[%clk 0:02:16]}  a5 {[%clk 0:02:39]} 12. cxd5 {[%clk 0:02:13]}  cxd5 {[%clk 0:02:38]} 13. a4 {[%clk 0:02:04]}  h5 {[%clk 0:02:33]} 14. h4 {[%clk 0:01:54]}  Qb6 {[%clk 0:02:25]} 15. Nb5 {[%clk 0:01:52]}  O-O {[%clk 0:02:20]} 16. Qd3 {[%clk 0:01:36]}  Nb8 {[%clk 0:02:11]} 17. Bd2 {[%clk 0:01:16]}  Nc6 {[%clk 0:02:10]} 18. Rfc1 {[%clk 0:01:13]}  Nb4 {[%clk 0:01:59]} 19. Bxb4 {[%clk 0:01:13]}  axb4 {[%clk 0:01:53]} 20. b3 {[%clk 0:01:05]}  Rfc8 {[%clk 0:01:49]} 21. Rc2 {[%clk 0:00:57]}  Bf2 {[%clk 0:01:46]} 22. Rac1 {[%clk 0:00:49]}  Rc6 {[%clk 0:01:40]} 23. Nd6 {[%clk 0:00:34]}  Ra5 {[%clk 0:01:16]} 24. Kh2 {[%clk 0:00:29]}  Rac5 {[%clk 0:01:14]} 25. Rxc5 {[%clk 0:00:29]}  Rxc5 {[%clk 0:01:14]} 26. Rxc5 {[%clk 0:00:26]}  Qxc5 {[%clk 0:01:09]} 27. Nxb7 {[%clk 0:00:10]}  Qc1 {[%clk 0:01:08]} 0-1


[Site "https://www.chess.com"]

[Event "Titled Tuesday Blitz June 13 Late 2023"]
[White "el_sporco"]
[Black "Golubev, Mikhail"]
[BlackFideId "14100983"]
[WhiteElo "2364"]
[BlackElo "2374"]
[Result "0-1"]
[Round "9"]
[TimeControl "180+2"]
[Date "2023.06.13"]
[WhiteClock "0:00:04"]
[BlackClock "0:00:06"]
[Board "101"]

1. e4 {[%clk 0:02:58]}  c5 {[%clk 0:02:51]} 2. Nf3 {[%clk 0:02:56]}  d6 {[%clk 0:02:51]} 3. Nc3 {[%clk 0:02:56]}  Nf6 {[%clk 0:02:50]} 4. e5 {[%clk 0:02:55]}  dxe5 {[%clk 0:02:49]} 5. Nxe5 {[%clk 0:02:56]}  Nbd7 {[%clk 0:02:41]} 6. d4 {[%clk 0:02:44]}  Nxe5 {[%clk 0:02:31]} 7. dxe5 {[%clk 0:02:44]}  Qxd1+ {[%clk 0:02:30]} 8. Nxd1 {[%clk 0:02:44]}  Nd5 {[%clk 0:02:27]} 9. Ne3 {[%clk 0:02:32]}  Nxe3 {[%clk 0:02:03]} 10. Bxe3 {[%clk 0:02:33]}  e6 {[%clk 0:02:02]} 11. Bb5+ {[%clk 0:02:23]}  Bd7 {[%clk 0:02:02]} 12. Bxd7+ {[%clk 0:02:22]}  Kxd7 {[%clk 0:02:03]} 13. O-O-O+ {[%clk 0:02:22]}  Kc6 {[%clk 0:02:00]} 14. Rd2 {[%clk 0:02:11]}  Be7 {[%clk 0:01:59]} 15. Rhd1 {[%clk 0:02:10]}  Rhd8 {[%clk 0:01:52]} 16. c4 {[%clk 0:02:09]}  Rxd2 {[%clk 0:01:49]} 17. Rxd2 {[%clk 0:02:10]}  a6 {[%clk 0:01:40]} 18. Kc2 {[%clk 0:02:05]}  b5 {[%clk 0:01:40]} 19. b3 {[%clk 0:02:06]}  bxc4 {[%clk 0:01:38]} 20. bxc4 {[%clk 0:02:07]}  Rb8 {[%clk 0:01:37]} 21. a3 {[%clk 0:02:03]}  a5 {[%clk 0:01:32]} 22. Kc3 {[%clk 0:02:02]}  a4 {[%clk 0:01:31]} 23. Rb2 {[%clk 0:02:02]}  Ra8 {[%clk 0:01:09]} 24. Rb5 {[%clk 0:01:52]}  f6 {[%clk 0:01:06]} 25. Kd3 {[%clk 0:01:44]}  Rd8+ {[%clk 0:00:57]} 26. Ke4 {[%clk 0:01:41]}  f5+ {[%clk 0:00:54]} 27. Kf3 {[%clk 0:01:41]}  g5 {[%clk 0:00:51]} 28. g3 {[%clk 0:01:26]}  Rd3 {[%clk 0:00:50]} 29. Ra5 {[%clk 0:01:21]}  Rxa3 {[%clk 0:00:33]} 30. Ra7 {[%clk 0:01:20]}  Bd8 {[%clk 0:00:18]} 31. Ke2 {[%clk 0:00:59]}  Ra2+ {[%clk 0:00:15]} 32. Kd3 {[%clk 0:00:58]}  a3 {[%clk 0:00:15]} 33. Kc3 {[%clk 0:00:33]}  Bc7 {[%clk 0:00:14]} 34. Kb3 {[%clk 0:00:27]}  Ra1 {[%clk 0:00:13]} 35. Rxa3 {[%clk 0:00:24]}  Rxa3+ {[%clk 0:00:13]} 36. Kxa3 {[%clk 0:00:25]}  Bxe5 {[%clk 0:00:13]} 37. Bxg5 {[%clk 0:00:26]}  Bd4 {[%clk 0:00:12]} 38. f4 {[%clk 0:00:24]}  Bg1 {[%clk 0:00:11]} 39. h3 {[%clk 0:00:23]}  h5 {[%clk 0:00:11]} 40. Ka4 {[%clk 0:00:19]}  Bf2 {[%clk 0:00:08]} 41. Bh4 {[%clk 0:00:15]}  e5 {[%clk 0:00:06]} 42. fxe5 {[%clk 0:00:16]}  f4 {[%clk 0:00:06]} 43. gxf4 {[%clk 0:00:10]}  Bxh4 {[%clk 0:00:06]} 44. f5 {[%clk 0:00:11]}  Bg3 {[%clk 0:00:05]} 45. e6 {[%clk 0:00:11]}  Bh4 {[%clk 0:00:04]} 46. Ka5 {[%clk 0:00:11]}  Be7 {[%clk 0:00:03]} 47. Ka6 {[%clk 0:00:11]}  Kd6 {[%clk 0:00:02]} 48. Kb6 {[%clk 0:00:12]}  Ke5 {[%clk 0:00:02]} 49. Kc6 {[%clk 0:00:12]}  Kxf5 {[%clk 0:00:03]} 50. Kd7 {[%clk 0:00:08]}  Kf6 {[%clk 0:00:03]} 51. h4 {[%clk 0:00:08]}  Bf8 {[%clk 0:00:03]} 52. Ke8 {[%clk 0:00:07]}  Bd6 {[%clk 0:00:03]} 53. Kd7 {[%clk 0:00:06]}  Be7 {[%clk 0:00:03]} 54. Kc6 {[%clk 0:00:04]}  Kxe6 {[%clk 0:00:04]} 55. Kb5 {[%clk 0:00:04]}  Bxh4 {[%clk 0:00:04]} 56. Kxc5 {[%clk 0:00:04]}  Bf2+ {[%clk 0:00:05]} 57. Kb4 {[%clk 0:00:04]}  h4 {[%clk 0:00:05]} 58. Kc3 {[%clk 0:00:04]}  h3 {[%clk 0:00:05]} 59. Kd3 {[%clk 0:00:05]}  h2 {[%clk 0:00:06]} 60. c5 {[%clk 0:00:04]}  Bxc5 {[%clk 0:00:06]} 0-1


[Site "https://www.chess.com"]

[Event "Titled Tuesday Blitz June 13 Late 2023"]
[White "Quinones Garcia, Santiago"]
[Black "Srdanovic, Jovana"]
[WhiteFideId "4408497"]
[BlackFideId "954810"]
[WhiteElo "2173"]
[BlackElo "2155"]
[Result "1-0"]
[Round "9"]
[TimeControl "180+2"]
[Date "2023.06.13"]
[WhiteClock "0:00:45"]
[BlackClock "0:00:38"]
[Board "102"]

1. d4 {[%clk 0:02:58]}  d5 {[%clk 0:02:59]} 2. c4 {[%clk 0:02:58]}  c6 {[%clk 0:02:56]} 3. Nf3 {[%clk 0:02:58]}  Nf6 {[%clk 0:02:56]} 4. e3 {[%clk 0:02:58]}  Bf5 {[%clk 0:02:55]} 5. Nc3 {[%clk 0:02:57]}  e6 {[%clk 0:02:54]} 6. Nh4 {[%clk 0:02:56]}  Be4 {[%clk 0:02:54]} 7. f3 {[%clk 0:02:53]}  Bg6 {[%clk 0:02:52]} 8. Nxg6 {[%clk 0:02:51]}  hxg6 {[%clk 0:02:52]} 9. Qb3 {[%clk 0:02:50]}  Qb6 {[%clk 0:02:50]} 10. Bd2 {[%clk 0:02:50]}  Nbd7 {[%clk 0:02:49]} 11. O-O-O {[%clk 0:02:49]}  Qc7 {[%clk 0:02:45]} 12. h3 {[%clk 0:02:47]}  Be7 {[%clk 0:02:43]} 13. e4 {[%clk 0:02:47]}  dxc4 {[%clk 0:02:40]} 14. Bxc4 {[%clk 0:02:46]}  b5 {[%clk 0:02:39]} 15. Bd3 {[%clk 0:02:45]}  a5 {[%clk 0:02:36]} 16. Kb1 {[%clk 0:02:42]}  a4 {[%clk 0:02:35]} 17. Qc2 {[%clk 0:02:42]}  Nb6 {[%clk 0:02:33]} 18. Nxb5 {[%clk 0:02:41]}  Qd7 {[%clk 0:02:30]} 19. Nc3 {[%clk 0:02:41]}  O-O {[%clk 0:02:22]} 20. Be3 {[%clk 0:02:38]}  Rfb8 {[%clk 0:02:21]} 21. h4 {[%clk 0:02:36]}  Ba3 {[%clk 0:02:15]} 22. Ka1 {[%clk 0:02:34]}  Nc4 {[%clk 0:01:34]} 23. Bxc4 {[%clk 0:02:21]}  Bxb2+ {[%clk 0:01:33]} 24. Qxb2 {[%clk 0:02:21]}  Rxb2 {[%clk 0:01:33]} 25. Kxb2 {[%clk 0:02:22]}  a3+ {[%clk 0:01:33]} 26. Ka1 {[%clk 0:02:22]}  Rb8 {[%clk 0:01:28]} 27. Rb1 {[%clk 0:02:22]}  Rxb1+ {[%clk 0:01:23]} 28. Rxb1 {[%clk 0:02:22]}  Nh5 {[%clk 0:01:23]} 29. e5 {[%clk 0:02:11]}  Ng3 {[%clk 0:01:20]} 30. Bf2 {[%clk 0:02:09]}  Nf5 {[%clk 0:01:18]} 31. Ne2 {[%clk 0:02:05]}  c5 {[%clk 0:01:13]} 32. dxc5 {[%clk 0:01:58]}  Qd2 {[%clk 0:01:14]} 33. c6 {[%clk 0:01:56]}  Ne3 {[%clk 0:01:07]} 34. Bxe3 {[%clk 0:01:50]}  Qxe3 {[%clk 0:01:08]} 35. f4 {[%clk 0:01:46]}  Qc5 {[%clk 0:01:08]} 36. Bb5 {[%clk 0:01:40]}  Kh7 {[%clk 0:01:07]} 37. Ba4 {[%clk 0:01:32]}  f6 {[%clk 0:00:58]} 38. exf6 {[%clk 0:01:29]}  gxf6 {[%clk 0:00:59]} 39. g4 {[%clk 0:01:24]}  g5 {[%clk 0:00:58]} 40. hxg5 {[%clk 0:01:15]}  fxg5 {[%clk 0:00:58]} 41. Rc1 {[%clk 0:00:53]}  Qb4 {[%clk 0:00:53]} 42. Bb3 {[%clk 0:00:46]}  Qd2 {[%clk 0:00:49]} 43. Rc2 {[%clk 0:00:46]}  Qe1+ {[%clk 0:00:43]} 44. Nc1 {[%clk 0:00:46]}  gxf4 {[%clk 0:00:42]} 45. c7 {[%clk 0:00:45]}  Qe5+ {[%clk 0:00:43]} 46. Kb1 {[%clk 0:00:45]}  f3 {[%clk 0:00:42]} 47. c8=Q {[%clk 0:00:45]}  f2 {[%clk 0:00:43]} 48. Qc7+ {[%clk 0:00:43]}  Qxc7 {[%clk 0:00:41]} 49. Rxc7+ {[%clk 0:00:44]}  Kg6 {[%clk 0:00:38]} 50. Bc4 {[%clk 0:00:45]} 1-0


[Site "https://www.chess.com"]

[Event "Titled Tuesday Blitz June 13 Late 2023"]
[White "Arnold, Ken"]
[Black "Korpics, Zsolt"]
[WhiteFideId "2056836"]
[BlackFideId "705241"]
[WhiteElo "2438"]
[BlackElo "2336"]
[Result "1/2-1/2"]
[Round "9"]
[TimeControl "180+2"]
[Date "2023.06.13"]
[WhiteClock "0:00:21"]
[BlackClock "0:00:06"]
[Board "106"]

1. d4 {[%clk 0:02:53]}  Nf6 {[%clk 0:02:59]} 2. c4 {[%clk 0:02:48]}  e6 {[%clk 0:02:57]} 3. Nf3 {[%clk 0:02:45]}  b6 {[%clk 0:02:55]} 4. Nc3 {[%clk 0:02:44]}  Bb4 {[%clk 0:02:53]} 5. Bd2 {[%clk 0:02:44]}  Bb7 {[%clk 0:02:47]} 6. e3 {[%clk 0:02:42]}  O-O {[%clk 0:02:46]} 7. Be2 {[%clk 0:02:41]}  d5 {[%clk 0:02:34]} 8. cxd5 {[%clk 0:02:39]}  Nxd5 {[%clk 0:02:24]} 9. Nxd5 {[%clk 0:02:38]}  Bxd2+ {[%clk 0:02:24]} 10. Nxd2 {[%clk 0:02:34]}  Bxd5 {[%clk 0:02:23]} 11. Bf3 {[%clk 0:02:33]}  Bxf3 {[%clk 0:02:20]} 12. Qxf3 {[%clk 0:02:33]}  Nd7 {[%clk 0:02:19]} 13. O-O {[%clk 0:02:27]}  e5 {[%clk 0:02:17]} 14. Nb3 {[%clk 0:02:20]}  exd4 {[%clk 0:02:14]} 15. Nxd4 {[%clk 0:02:20]}  Ne5 {[%clk 0:02:11]} 16. Qg3 {[%clk 0:02:18]}  Qf6 {[%clk 0:02:09]} 17. Rac1 {[%clk 0:02:13]}  c5 {[%clk 0:02:08]} 18. Nb5 {[%clk 0:02:02]}  Rfd8 {[%clk 0:01:57]} 19. Rcd1 {[%clk 0:01:53]}  Rxd1 {[%clk 0:01:41]} 20. Rxd1 {[%clk 0:01:52]}  Rd8 {[%clk 0:01:41]} 21. Rxd8+ {[%clk 0:01:44]}  Qxd8 {[%clk 0:01:42]} 22. h3 {[%clk 0:01:40]}  Qd1+ {[%clk 0:01:37]} 23. Kh2 {[%clk 0:01:39]}  f6 {[%clk 0:01:34]} 24. Nxa7 {[%clk 0:01:12]}  Qa4 {[%clk 0:01:33]} 25. Nc8 {[%clk 0:01:04]}  Qxa2 {[%clk 0:01:09]} 26. Nxb6 {[%clk 0:00:56]}  Qxb2 {[%clk 0:01:06]} 27. Nd5 {[%clk 0:00:56]}  Kf7 {[%clk 0:00:54]} 28. f4 {[%clk 0:00:55]}  Nd3 {[%clk 0:00:46]} 29. Qg4 {[%clk 0:00:54]}  Qb7 {[%clk 0:00:41]} 30. Qh5+ {[%clk 0:00:52]}  Kf8 {[%clk 0:00:37]} 31. e4 {[%clk 0:00:43]}  h6 {[%clk 0:00:31]} 32. Qd1 {[%clk 0:00:36]}  c4 {[%clk 0:00:28]} 33. Qa4 {[%clk 0:00:33]}  Qb3 {[%clk 0:00:17]} 34. Qd7 {[%clk 0:00:31]}  Qa3 {[%clk 0:00:16]} 35. Qd8+ {[%clk 0:00:31]}  Kf7 {[%clk 0:00:16]} 36. Qc7+ {[%clk 0:00:31]}  Kg8 {[%clk 0:00:14]} 37. Qxc4 {[%clk 0:00:31]}  Kh7 {[%clk 0:00:09]} 38. Qc8 {[%clk 0:00:30]}  Qd6 {[%clk 0:00:05]} 39. Qf5+ {[%clk 0:00:30]}  Kh8 {[%clk 0:00:02]} 40. Qg4 {[%clk 0:00:28]}  Nc5 {[%clk 0:00:02]} 41. Qf3 {[%clk 0:00:28]}  Ne6 {[%clk 0:00:02]} 42. g3 {[%clk 0:00:27]}  f5 {[%clk 0:00:01]} 43. Ne3 {[%clk 0:00:22]}  fxe4 {[%clk 0:00:01]} 44. Qxe4 {[%clk 0:00:21]}  Nc5 {[%clk 0:00:02]} 45. Qe8+ {[%clk 0:00:21]}  Kh7 {[%clk 0:00:02]} 46. Ng2 {[%clk 0:00:20]}  Ne6 {[%clk 0:00:02]} 47. Qh5 {[%clk 0:00:19]}  Qe7 {[%clk 0:00:02]} 48. Qf3 {[%clk 0:00:19]}  Nf8 {[%clk 0:00:02]} 49. h4 {[%clk 0:00:20]}  Qf7 {[%clk 0:00:02]} 50. Qe4+ {[%clk 0:00:20]}  g6 {[%clk 0:00:02]} 51. h5 {[%clk 0:00:19]}  Kg7 {[%clk 0:00:01]} 52. hxg6 {[%clk 0:00:19]}  Qxg6 {[%clk 0:00:02]} 53. Qxg6+ {[%clk 0:00:19]}  Kxg6 {[%clk 0:00:03]} 54. Kh3 {[%clk 0:00:20]}  h5 {[%clk 0:00:03]} 55. Nh4+ {[%clk 0:00:20]}  Kh6 {[%clk 0:00:03]} 56. Kg2 {[%clk 0:00:21]}  Ne6 {[%clk 0:00:02]} 57. Kf3 {[%clk 0:00:21]}  Kg7 {[%clk 0:00:02]} 58. Ke4 {[%clk 0:00:21]}  Kf6 {[%clk 0:00:02]} 59. f5 {[%clk 0:00:19]}  Ng5+ {[%clk 0:00:02]} 60. Kf4 {[%clk 0:00:20]}  Nh3+ {[%clk 0:00:03]} 61. Kf3 {[%clk 0:00:20]}  Ng5+ {[%clk 0:00:03]} 62. Kf4 {[%clk 0:00:20]}  Nh3+ {[%clk 0:00:03]} 63. Ke4 {[%clk 0:00:21]}  Nf2+ {[%clk 0:00:03]} 64. Kf3 {[%clk 0:00:21]}  Nh3 {[%clk 0:00:04]} 65. g4 {[%clk 0:00:20]}  Ng5+ {[%clk 0:00:04]} 66. Kf4 {[%clk 0:00:20]}  hxg4 {[%clk 0:00:05]} 67. Kxg4 {[%clk 0:00:20]}  Nf7 {[%clk 0:00:05]} 68. Nf3 {[%clk 0:00:20]}  Nh6+ {[%clk 0:00:05]} 69. Kf4 {[%clk 0:00:21]}  Nxf5 {[%clk 0:00:06]} 1/2-1/2


[Site "https://www.chess.com"]

[Event "Titled Tuesday Blitz June 13 Late 2023"]
[White "Buchenau, Frank"]
[Black "Martinez, Ayelen"]
[WhiteFideId "4604350"]
[BlackFideId "118702"]
[WhiteElo "2157"]
[BlackElo "2074"]
[Result "0-1"]
[Round "9"]
[TimeControl "180+2"]
[Date "2023.06.13"]
[WhiteClock "0:00:00"]
[BlackClock "0:00:12"]
[Board "108"]

1. e4 {[%clk 0:02:59]}  c5 {[%clk 0:02:58]} 2. Nf3 {[%clk 0:02:59]}  d6 {[%clk 0:02:58]} 3. Bb5+ {[%clk 0:02:59]}  Bd7 {[%clk 0:02:57]} 4. Bxd7+ {[%clk 0:02:59]}  Qxd7 {[%clk 0:02:57]} 5. c4 {[%clk 0:02:58]}  Nc6 {[%clk 0:02:57]} 6. d4 {[%clk 0:02:57]}  cxd4 {[%clk 0:02:58]} 7. Nxd4 {[%clk 0:02:58]}  e6 {[%clk 0:02:53]} 8. Nc3 {[%clk 0:02:58]}  Be7 {[%clk 0:02:53]} 9. O-O {[%clk 0:02:57]}  Nf6 {[%clk 0:02:54]} 10. Be3 {[%clk 0:02:57]}  Rc8 {[%clk 0:02:53]} 11. Qe2 {[%clk 0:02:56]}  a6 {[%clk 0:02:47]} 12. Rad1 {[%clk 0:02:54]}  Nxd4 {[%clk 0:02:42]} 13. Bxd4 {[%clk 0:02:52]}  Qc6 {[%clk 0:02:42]} 14. b3 {[%clk 0:02:09]}  O-O {[%clk 0:02:40]} 15. f4 {[%clk 0:01:54]}  Rfe8 {[%clk 0:02:24]} 16. e5 {[%clk 0:01:50]}  dxe5 {[%clk 0:02:22]} 17. fxe5 {[%clk 0:01:50]}  Nd7 {[%clk 0:02:20]} 18. Ne4 {[%clk 0:01:33]}  Nc5 {[%clk 0:01:49]} 19. Nf6+ {[%clk 0:01:22]}  Bxf6 {[%clk 0:01:45]} 20. exf6 {[%clk 0:01:21]}  Qe4 {[%clk 0:01:39]} 21. Qxe4 {[%clk 0:01:14]}  Nxe4 {[%clk 0:01:38]} 22. fxg7 {[%clk 0:01:14]}  e5 {[%clk 0:01:39]} 23. Bb2 {[%clk 0:00:54]}  Rcd8 {[%clk 0:01:20]} 24. Rxd8 {[%clk 0:00:49]}  Rxd8 {[%clk 0:01:20]} 25. Bxe5 {[%clk 0:00:48]}  Rd2 {[%clk 0:01:21]} 26. h3 {[%clk 0:00:39]}  Rxa2 {[%clk 0:01:04]} 27. Re1 {[%clk 0:00:26]}  Nc5 {[%clk 0:01:04]} 28. Rd1 {[%clk 0:00:19]}  Ne6 {[%clk 0:01:01]} 29. Rd7 {[%clk 0:00:19]}  b5 {[%clk 0:00:56]} 30. cxb5 {[%clk 0:00:15]}  axb5 {[%clk 0:00:57]} 31. Rb7 {[%clk 0:00:15]}  Ra8 {[%clk 0:00:35]} 32. Rxb5 {[%clk 0:00:16]}  Nxg7 {[%clk 0:00:33]} 33. Kf2 {[%clk 0:00:13]}  Ne8 {[%clk 0:00:28]} 34. Rb8 {[%clk 0:00:12]}  Rxb8 {[%clk 0:00:26]} 35. Bxb8 {[%clk 0:00:13]}  Nf6 {[%clk 0:00:26]} 36. Ke3 {[%clk 0:00:11]}  Kf8 {[%clk 0:00:26]} 37. Kd4 {[%clk 0:00:11]}  Ke8 {[%clk 0:00:27]} 38. Be5 {[%clk 0:00:10]}  Nd7 {[%clk 0:00:25]} 39. b4 {[%clk 0:00:10]}  f6 {[%clk 0:00:25]} 40. Bd6 {[%clk 0:00:10]}  Nb6 {[%clk 0:00:20]} 41. b5 {[%clk 0:00:09]}  Kd7 {[%clk 0:00:19]} 42. Bc5 {[%clk 0:00:07]}  Na4 {[%clk 0:00:16]} 43. Bf8 {[%clk 0:00:04]}  Kc7 {[%clk 0:00:14]} 44. Kc4 {[%clk 0:00:01]}  Kb6 {[%clk 0:00:13]} 45. Kb4 {[%clk 0:00:01]}  Nb2 {[%clk 0:00:13]} 46. Bc5+ {[%clk 0:00:01]}  Kb7 {[%clk 0:00:13]} 47. Bd4 {[%clk 0:00:02]}  Nd3+ {[%clk 0:00:13]} 48. Kc4 {[%clk 0:00:02]}  Nf4 {[%clk 0:00:12]} 49. g3 {[%clk 0:00:00]}  Nh5 {[%clk 0:00:12]} 0-1


[Site "https://www.chess.com"]

[Event "Titled Tuesday Blitz June 13 Late 2023"]
[White "Myers, Dominique"]
[Black "Ricaurte Lopez, Juan Carlos"]
[WhiteFideId "2041715"]
[BlackFideId "3600327"]
[WhiteElo "1951"]
[BlackElo "2200"]
[Result "0-1"]
[Round "9"]
[TimeControl "180+2"]
[Date "2023.06.13"]
[WhiteClock "0:01:49"]
[BlackClock "0:01:37"]
[Board "111"]

1. e4 {[%clk 0:03:00]}  e5 {[%clk 0:02:56]} 2. Nf3 {[%clk 0:02:59]}  d5 {[%clk 0:02:54]} 3. exd5 {[%clk 0:02:58]}  e4 {[%clk 0:02:53]} 4. Qe2 {[%clk 0:02:58]}  Nf6 {[%clk 0:02:52]} 5. Nc3 {[%clk 0:02:58]}  Be7 {[%clk 0:02:52]} 6. Ng5 {[%clk 0:02:56]}  O-O {[%clk 0:02:43]} 7. g3 {[%clk 0:02:56]}  Bg4 {[%clk 0:02:37]} 8. Qe3 {[%clk 0:02:43]}  Nxd5 {[%clk 0:02:26]} 9. Nxd5 {[%clk 0:02:42]}  Qxd5 {[%clk 0:02:24]} 10. Nxe4 {[%clk 0:02:40]}  Bc5 {[%clk 0:02:12]} 11. Nxc5 {[%clk 0:02:25]}  Qxh1 {[%clk 0:02:08]} 12. d4 {[%clk 0:02:21]}  Nc6 {[%clk 0:02:07]} 13. Qc3 {[%clk 0:02:06]}  Bh3 {[%clk 0:01:58]} 14. Qc4 {[%clk 0:02:04]}  Nxd4 {[%clk 0:01:53]} 15. Be3 {[%clk 0:02:04]}  Nxc2+ {[%clk 0:01:46]} 16. Qxc2 {[%clk 0:01:59]}  Qxf1+ {[%clk 0:01:44]} 17. Kd2 {[%clk 0:02:00]}  Qxa1 {[%clk 0:01:44]} 18. Nd3 {[%clk 0:01:53]}  Rad8 {[%clk 0:01:40]} 19. Ke2 {[%clk 0:01:49]}  Bf1+ {[%clk 0:01:37]} 0-1


[Site "https://www.chess.com"]